bitfinex-derivatives/quotes_BTCF0:USTF0_20251011
["timestamp","ask_amount","ask_price","bid_price","bid_amount"]
[1760205598222,0.51661,112030.0,112020.0,0.1114356]
[1760205598722,0.51661,112030.0,112020.0,0.19167976]
[1760205599221,0.51661,112030.0,112020.0,0.20493976]
[1760205600322,0.51661,112030.0,112020.0,0.19167976]
[1760205601219,0.6057822,112030.0,112020.0,0.19167976]
[1760205603026,0.9665822,112030.0,112020.0,0.19167976]
[1760205603524,0.9665822,112030.0,112020.0,0.1114356]
[1760205606227,0.9665822,112030.0,112020.0,0.02226]
[1760205606432,0.9665822,112030.0,112010.0,0.09336416]
[1760205606433,0.1252802,112020.0,112010.0,0.19269506]
[1760205606731,0.88738344,112020.0,112010.0,0.19269506]
[1760205607632,0.88738344,112020.0,112010.0,0.1124182]
[1760205609331,0.93245344,112020.0,112010.0,0.1124182]
[1760205609829,0.1031282,112010.0,112000.0,0.11224818]
[1760205610026,0.88739144,112010.0,112000.0,0.11224818]
[1760205610233,0.4721482,112010.0,112000.0,0.13442742]
[1760205610831,0.38296,112010.0,112000.0,0.61600752]
[1760205611134,0.5914102,112020.0,112010.0,0.1256782]
[1760205611335,0.2306102,112020.0,112010.0,0.52698144]
[1760205611637,0.2296102,112020.0,112010.0,0.52698144]
[1760205612529,0.5904102,112020.0,112010.0,0.52698144]
[1760205612737,0.6050002,112020.0,112010.0,0.02323]
[1760205614635,0.1248282,112010.0,112000.0,0.11046818]
[1760205614840,0.4856282,112010.0,112000.0,0.19966428]
[1760205615336,0.4856282,112010.0,112000.0,0.11938742]
[1760205615945,0.4720382,112010.0,112000.0,0.13322742]
[1760205617141,0.4856282,112010.0,112000.0,0.03019132]
[1760205617942,0.55654373,112010.0,112000.0,0.03019132]
[1760205619244,0.95784697,112010.0,112000.0,0.03019132]
[1760205620242,0.55654373,112010.0,112000.0,0.03019132]
[1760205625245,0.60161373,112010.0,112000.0,0.03019132]
[1760205625648,0.60161373,112010.0,112000.0,0.00874132]
[1760205625846,0.1248362,112000.0,111990.0,0.20363086]
[1760205626147,0.4856362,112000.0,111990.0,0.20363086]
[1760205626445,0.4856362,112000.0,111990.0,0.21241397]
[1760205626845,0.4856362,112000.0,111990.0,0.13213711]
[1760205627140,0.4856362,112000.0,111990.0,0.21241397]
[1760205627846,0.4720462,112000.0,111990.0,0.21241397]
[1760205628641,0.4720462,112000.0,111990.0,0.13213711]
[1760205629553,0.4720462,112000.0,111990.0,0.53344035]
[1760205631350,0.56597823,112010.0,111990.0,1.01371721]
[1760205631649,0.58802823,112010.0,112000.0,0.43659324]
[1760205632355,0.58802823,112010.0,112000.0,0.52578944]
[1760205634760,0.58802823,112010.0,112000.0,0.1244862]
[1760205636357,0.58802823,112010.0,112000.0,0.20476306]
[1760205636560,0.58802823,112010.0,112000.0,0.11556686]
[1760205636756,0.58802823,112010.0,112000.0,0.03529]
[1760205637059,0.67481823,112010.0,112000.0,0.03529]
[1760205637555,0.67481823,112010.0,112000.0,0.02145]
[1760205639060,0.67481823,112010.0,112000.0,0.10172686]
[1760205639452,1.1264493,112010.0,112000.0,0.10172686]
[1760205639651,0.1248362,112000.0,111990.0,0.08027686]
[1760205639952,0.1248441,111990.0,111980.0,0.02145]
[1760205640257,0.1239953,111980.0,111970.0,0.02145]
[1760205640457,0.4847953,111980.0,111970.0,0.02145]
[1760205640654,0.93642637,111980.0,111970.0,0.02145]
[1760205640957,0.93642637,111980.0,111970.0,0.11465686]
[1760205641754,0.93642637,111980.0,111970.0,0.12350112]
[1760205642258,0.93642637,111980.0,111970.0,0.12450112]
[1760205642459,0.93642637,111980.0,111970.0,0.12550112]
[1760205642959,0.98149637,111980.0,111970.0,0.12550112]
[1760205643354,0.98149637,111980.0,111970.0,0.11257112]
[1760205643555,0.98149637,111980.0,111970.0,0.01084426]
[1760205644360,0.98149637,111980.0,111970.0,0.03377426]
[1760205644655,0.98149637,111980.0,111970.0,0.03277426]
[1760205644856,0.98149637,111980.0,111970.0,0.02393]
[1760205645357,0.98149637,111980.0,111970.0,0.02293]
[1760205645759,0.98149637,111980.0,111970.0,0.03183057]
[1760205646456,0.98149637,111980.0,111970.0,0.02293]
[1760205648260,0.98149637,111980.0,111970.0,0.03169085]
[1760205650258,0.98149637,111980.0,111970.0,0.04500085]
[1760205651359,0.5298653,111980.0,111970.0,0.04500085]
[1760205651563,0.5162753,111980.0,111970.0,0.58585192]
[1760205652264,0.1554753,111980.0,111970.0,0.58585192]
[1760205653066,0.155472,111980.0,111970.0,0.58585192]
[1760205655568,0.04507,111980.0,111970.0,1.34665192]
[1760205659371,0.04507,111980.0,111970.0,1.42692878]
[1760205662075,0.04507,111980.0,111970.0,1.34665192]
[1760205663278,0.04507,111980.0,111970.0,1.42692878]
[1760205667578,0.04507,111980.0,111970.0,1.06612878]
[1760205668276,0.60901307,111980.0,111970.0,0.21449771]
[1760205668479,0.60901307,111980.0,111970.0,0.66612878]
[1760205668681,0.157382,111980.0,111970.0,0.58585192]
[1760205669880,0.518182,111980.0,111970.0,0.58585192]
[1760205670374,0.518182,111980.0,111970.0,0.66612878]
[1760205670678,0.518182,111980.0,111970.0,0.58585192]
[1760205671181,0.518182,111980.0,111970.0,0.66612878]
[1760205671576,0.518182,111980.0,111970.0,0.58585192]
[1760205671980,0.96981307,111980.0,111970.0,0.58585192]
[1760205672181,0.518182,111980.0,111970.0,0.58585192]
[1760205672379,0.518182,111980.0,111970.0,0.66612878]
[1760205673080,0.96981307,111980.0,111970.0,0.57690878]
[1760205673287,0.98298307,111980.0,111970.0,0.04500085]
[1760205673489,0.98298307,111980.0,111970.0,0.58585192]
[1760205674786,0.518182,111980.0,111970.0,0.58585192]
[1760205674980,0.60901307,111980.0,111970.0,0.58585192]
[1760205675188,0.518182,111980.0,111970.0,0.58585192]
[1760205676791,0.42897,111980.0,111970.0,0.66612878]
[1760205676991,0.06817,111980.0,111970.0,0.66612878]
[1760205677294,0.157382,111980.0,111970.0,0.66612878]
[1760205677791,0.06817,111980.0,111970.0,0.66612878]
[1760205678894,0.04507,111980.0,111970.0,0.94665192]
[1760205679784,0.04507,111980.0,111970.0,1.42681392]
[1760205680592,0.11829,111980.0,111970.0,1.42681392]
[1760205682894,0.11829,111980.0,111970.0,1.34665192]
[1760205683089,0.11829,111980.0,111970.0,1.45893722]
[1760205684794,0.43171553,112010.0,112000.0,0.0891961]
[1760205684993,0.07091553,112010.0,112000.0,0.56595717]
[1760205685198,0.4862122,112030.0,112020.0,0.02123]
[1760205685398,0.4862122,112030.0,112020.0,0.47286107]
[1760205685602,0.39704,112030.0,112020.0,0.56204127]
[1760205686306,0.8862122,112030.0,112020.0,0.02123]
[1760205686501,0.8862122,112030.0,112020.0,0.47286107]
[1760205686700,0.8882122,112030.0,112020.0,0.47286107]
[1760205686997,1.33984327,112030.0,112020.0,0.47286107]
[1760205687198,0.8882122,112030.0,112020.0,0.47286107]
[1760205687398,0.38587,112030.0,112020.0,1.02748234]
[1760205687603,0.002,112030.0,112020.0,1.02748234]
[1760205688003,0.02507,112030.0,112020.0,1.02748234]
[1760205688605,0.03824,112030.0,112020.0,0.57585127]
[1760205689704,0.39904,112030.0,112020.0,0.58498978]
[1760205690104,0.39904,112030.0,112020.0,0.57117978]
[1760205691203,0.38587,112030.0,112020.0,0.58498978]
[1760205691518,0.02507,112030.0,112020.0,1.03662085]
[1760205692909,0.002,112030.0,112020.0,1.03662085]
[1760205693309,0.002,112030.0,112020.0,1.79742085]
[1760205693810,0.07319,112040.0,112030.0,0.1242123]
[1760205694116,0.07319,112040.0,112030.0,0.93664337]
[1760205694613,0.07319,112040.0,112030.0,1.33664337]
[1760205695116,0.07419,112040.0,112030.0,1.33664337]
[1760205695411,0.07519,112040.0,112030.0,1.33664337]
[1760205699521,0.07519,112040.0,112030.0,1.28607666]
[1760205702121,0.09826,112040.0,112030.0,1.28607666]
[1760205702321,0.09826,112040.0,112030.0,0.88607666]
[1760205702910,0.09726,112040.0,112030.0,0.88707666]
[1760205703522,0.09626,112040.0,112030.0,0.88707666]
[1760205707925,0.02307,112040.0,112030.0,0.88707666]
[1760205713127,0.02307,112040.0,112030.0,0.52627666]
[1760205713429,0.79725,112040.0,112030.0,0.1114023]
[1760205713625,0.8864143,112040.0,112030.0,0.51246666]
[1760205717534,0.79725,112040.0,112030.0,0.51246666]
[1760205717736,0.43645,112040.0,112030.0,0.51246666]
[1760205717935,0.43645,112040.0,112030.0,0.87326666]
[1760205718436,0.4,112040.0,112030.0,0.88640666]
[1760205718833,0.42138,112040.0,112030.0,0.88640666]
[1760205719537,0.79556,112040.0,112030.0,0.51246666]
[1760205720539,0.43476,112040.0,112030.0,0.51246666]
[1760205720835,0.8847243,112040.0,112030.0,0.51246666]
[1760205721231,0.79556,112040.0,112030.0,0.51246666]
[1760205721438,0.79556,112040.0,112030.0,0.52560666]
[1760205721736,0.42138,112040.0,112030.0,0.52560666]
[1760205722236,0.43476,112040.0,112030.0,0.1114023]
[1760205722436,0.79556,112040.0,112030.0,0.51246666]
[1760205723131,0.7608,112040.0,112030.0,0.52560666]
[1760205723330,0.4,112040.0,112030.0,0.88640666]
[1760205723526,0.53998368,112050.0,112040.0,0.0891643]
[1760205723728,0.45536,112050.0,112040.0,0.51705866]
[1760205724834,0.46874,112050.0,112040.0,0.51181866]
[1760205725732,0.46974,112050.0,112040.0,0.51181866]
[1760205726036,0.45636,112050.0,112040.0,0.51705866]
[1760205726538,0.46974,112050.0,112040.0,0.51181866]
[1760205729035,0.5588963,112050.0,112040.0,0.51181866]
[1760205729541,0.9588963,112050.0,112040.0,0.1107543]
[1760205730738,0.86974,112050.0,112040.0,0.1107543]
[1760205732742,0.86974,112050.0,112040.0,0.51181866]
[1760205734746,0.9588963,112050.0,112040.0,0.51181866]
[1760205735641,0.5980963,112050.0,112040.0,0.51181866]
[1760205735849,0.9588963,112050.0,112040.0,0.51181866]
[1760205737843,0.9588963,112050.0,112040.0,0.1107543]
[1760205738146,0.9588963,112050.0,112040.0,0.19090884]
[1760205739951,0.9588963,112050.0,112040.0,0.1107543]
[1760205740152,0.9588963,112050.0,112040.0,0.19090884]
[1760205744457,0.9588963,112050.0,112040.0,0.1107543]
[1760205745949,0.9588963,112050.0,112040.0,0.19090884]
[1760205746653,0.9588963,112050.0,112040.0,0.5919732]
[1760205747147,0.45636,112050.0,112040.0,0.5972132]
[1760205750850,0.5586964,112050.0,112040.0,0.5919732]
[1760205751556,0.5586964,112050.0,112040.0,0.10174454]
[1760205753157,0.5586964,112050.0,112040.0,0.19090884]
[1760205754755,0.5586964,112050.0,112040.0,0.5919732]
[1760205756160,0.5586964,112050.0,112040.0,0.19090884]
[1760205756459,0.5586964,112050.0,112040.0,0.5919732]
[1760205760163,0.5586964,112050.0,112040.0,0.5972132]
[1760205760363,0.5586964,112050.0,112040.0,0.51705866]
[1760205760562,0.5455164,112050.0,112040.0,0.51705866]
[1760205761063,0.45636,112050.0,112040.0,0.51705866]
[1760205761567,0.45636,112050.0,112040.0,0.56719571]
[1760205761966,0.45636,112050.0,112040.0,0.64735025]
[1760205763766,0.46919,112050.0,112040.0,0.64735025]
[1760205764366,0.5583464,112050.0,112040.0,0.64735025]
[1760205764769,0.1975464,112050.0,112040.0,0.64735025]
[1760205765462,0.5583464,112050.0,112040.0,0.64735025]
[1760205765663,0.4851664,112050.0,112040.0,0.64735025]
[1760205766465,0.4851664,112050.0,112040.0,0.64211025]
[1760205767559,0.4851664,112050.0,112040.0,0.55294595]
[1760205767764,0.4851664,112050.0,112040.0,0.64211025]
[1760205768466,0.5583464,112050.0,112040.0,0.64211025]
[1760205768666,0.5583464,112050.0,112040.0,0.10174454]
[1760205768963,0.5583464,112050.0,112030.0,0.08015454]
[1760205768964,0.1250743,112040.0,112030.0,0.08015454]
[1760205769163,0.93707571,112040.0,112030.0,0.02312]
[1760205769371,0.4858743,112040.0,112030.0,0.47432141]
[1760205771572,0.93707571,112040.0,112030.0,0.47432141]
[1760205772168,0.4858743,112040.0,112030.0,0.47432141]
[1760205773867,0.4858743,112040.0,112030.0,0.56349371]
[1760205775876,0.1250743,112040.0,112030.0,0.56349371]
[1760205776175,0.4858743,112040.0,112030.0,0.56349371]
[1760205776974,0.1250822,112030.0,112020.0,0.08929305]
[1760205777273,0.4858822,112030.0,112020.0,0.57264012]
[1760205777478,1.33708361,112030.0,112020.0,0.03225851]
[1760205779074,1.33708361,112030.0,112020.0,0.03325851]
[1760205780685,1.33708361,112030.0,112020.0,0.01013851]
[1760205781184,1.33708361,112030.0,112020.0,0.03325851]
[1760205783885,0.8858822,112030.0,112020.0,0.03325851]
[1760205784079,1.33708361,112030.0,112020.0,0.48445992]
[1760205785082,0.8858822,112030.0,112020.0,0.48445992]
[1760205785382,1.33708361,112030.0,112020.0,0.48445992]
[1760205787091,1.33708361,112030.0,112020.0,0.03325851]
[1760205787889,0.8858822,112030.0,112020.0,0.03325851]
[1760205788080,1.33708361,112030.0,112020.0,0.03325851]
[1760205789286,1.33708361,112030.0,112020.0,0.57364012]
[1760205789885,1.33708361,112030.0,112020.0,0.01013851]
[1760205790186,1.78828502,112030.0,112020.0,0.001]
[1760205790490,0.1250982,112010.0,112000.0,0.00906406]
[1760205790694,0.1251061,112000.0,111990.0,0.55447595]
[1760205790892,0.4859061,112000.0,111990.0,0.55447595]
[1760205791289,0.4859061,112000.0,111990.0,0.47432141]
[1760205791492,0.4859061,112000.0,111990.0,0.56352481]
[1760205791986,0.4849061,112000.0,111990.0,0.56352481]
[1760205792692,0.4839061,112000.0,111990.0,0.56352481]
[1760205793588,0.4839061,112000.0,111990.0,0.57238153]
[1760205793889,0.55452118,112000.0,111990.0,0.57238153]
[1760205797398,0.55452118,112000.0,111990.0,0.65253607]
[1760205797596,0.55452118,112000.0,111990.0,0.57238153]
[1760205804205,0.19372118,112000.0,111990.0,0.57238153]
[1760205804399,0.55452118,112000.0,111990.0,0.57238153]
[1760205806000,0.46732508,112000.0,111990.0,0.57238153]
[1760205806605,0.55652118,112000.0,111990.0,0.57238153]
[1760205811013,0.55652118,112000.0,111990.0,0.65253607]
[1760205812410,0.55652118,112000.0,111990.0,0.57238153]
[1760205816110,0.3608,112010.0,112000.0,0.1253761]
[1760205816413,0.39573,112030.0,112020.0,0.1123702]
[1760205816609,0.4849022,112030.0,112020.0,0.56357161]
[1760205817514,0.4849022,112030.0,112020.0,0.02319]
[1760205817708,0.5558693,112030.0,112020.0,0.47439141]
[1760205818414,1.00707071,112030.0,112020.0,0.02319]
[1760205819317,1.00807071,112030.0,112020.0,0.02319]
[1760205819523,0.1248802,112020.0,112010.0,0.10333545]
[1760205819817,0.93688161,112020.0,112010.0,0.02319]
[1760205820316,0.93688161,112020.0,112010.0,0.1123781]
[1760205821411,0.4856802,112020.0,112010.0,0.02319]
[1760205821608,0.1242181,112010.0,112000.0,0.10235545]
[1760205821808,0.4850181,112010.0,112000.0,0.10235545]
[1760205822023,0.4850181,112010.0,112000.0,0.19155145]
[1760205823718,0.4850181,112010.0,112000.0,0.59293382]
[1760205824219,0.5582181,112010.0,112000.0,0.59293382]
[1760205828024,0.5582181,112010.0,112000.0,0.51278837]
[1760205828219,0.46903,112010.0,112000.0,0.51278837]
[1760205828425,0.46903,112010.0,112000.0,0.52566837]
[1760205828925,0.0732,112010.0,112000.0,1.28646837]
[1760205830828,0.0732,112010.0,112000.0,0.885086]
[1760205831030,0.0732,112010.0,112000.0,1.28646837]
[1760205831725,0.5570682,112010.0,112000.0,0.02221]
[1760205832026,0.5570682,112010.0,112000.0,0.19155155]
[1760205832227,0.46788,112010.0,112000.0,0.19155155]
[1760205834126,0.46788,112010.0,112000.0,0.1114061]
[1760205834325,0.46788,112010.0,112000.0,0.51278847]
[1760205836327,0.46788,112010.0,112000.0,0.1114061]
[1760205836628,0.46788,112010.0,112000.0,0.51278847]
[1760205837628,0.46788,112010.0,112000.0,0.59293622]
[1760205838028,0.46788,112010.0,112000.0,0.51278847]
[1760205839132,0.46788,112010.0,112000.0,0.1114061]
[1760205839332,0.46788,112010.0,112000.0,0.51278847]
[1760205840122,0.46788,112010.0,112000.0,0.1114061]
[1760205840330,0.46788,112010.0,112000.0,0.51278847]
[1760205841430,0.46788,112010.0,112000.0,0.1114061]
[1760205841632,0.46788,112010.0,112000.0,0.51278847]
[1760205843031,0.46788,112010.0,112000.0,0.1114061]
[1760205843633,0.46788,112010.0,112000.0,0.51278847]
[1760205844528,0.46788,112010.0,112000.0,0.62507377]
[1760205845931,0.4551,112010.0,112000.0,0.63795377]
[1760205846439,0.4551,112010.0,112000.0,0.52566847]
[1760205846935,0.46788,112010.0,112000.0,0.52566847]
[1760205847131,0.0732,112010.0,112000.0,0.92566847]
[1760205847439,0.0732,112010.0,112000.0,1.39875377]
[1760205848035,0.0732,112010.0,112000.0,1.28646847]
[1760205849840,0.0943,112010.0,112000.0,1.28646847]
[1760205851432,0.0732,112010.0,112000.0,1.28646847]
[1760205851633,0.0732,112010.0,112000.0,1.36670661]
[1760205852532,0.0732,112010.0,112000.0,1.28646847]
[1760205854333,0.0732,112010.0,112000.0,1.39875377]
[1760205860540,0.0732,112010.0,112000.0,1.28646847]
[1760205862642,0.09631,112010.0,112000.0,1.28646847]
[1760205864341,0.09631,112010.0,112000.0,1.39875377]
[1760205866437,0.10975,112010.0,112000.0,0.98587377]
[1760205869641,0.10975,112010.0,112000.0,0.62507377]
[1760205869842,0.10975,112010.0,112000.0,0.51278847]
[1760205870948,0.10975,112010.0,112000.0,0.52577847]
[1760205872847,0.10975,112010.0,112000.0,0.51278847]
[1760205874254,0.1989382,112010.0,112000.0,0.1024607]
[1760205874642,0.10975,112010.0,112000.0,0.1916568]
[1760205875350,0.10975,112010.0,112000.0,0.59303917]
[1760205875751,0.47055,112010.0,112000.0,0.59303917]
[1760205877853,0.47055,112010.0,112000.0,0.1916568]
[1760205878152,0.47055,112010.0,112000.0,0.59303917]
[1760205878551,0.10975,112010.0,112000.0,0.59303917]
[1760205878854,0.47055,112010.0,112000.0,0.59303917]
[1760205879654,0.5597382,112010.0,112000.0,0.59303917]
[1760205881547,0.5597382,112010.0,112000.0,0.1024607]
[1760205881752,0.1253961,112000.0,111990.0,0.11190742]
[1760205881955,0.93775088,112000.0,111990.0,0.11190742]
[1760205882756,0.93775088,112000.0,111990.0,0.5634622]
[1760205883557,0.93775088,112000.0,111990.0,0.6526663]
[1760205883859,0.93775088,112000.0,111990.0,0.6536663]
[1760205885359,1.01096088,112000.0,111990.0,0.5734156]
[1760205888161,0.5594061,112000.0,111990.0,0.5734156]
[1760205892564,0.1986061,112000.0,111990.0,0.5734156]
[1760205892763,0.5594061,112000.0,111990.0,0.5734156]
[1760205898265,0.1986061,112000.0,111990.0,0.5734156]
[1760205898564,0.5594061,112000.0,111990.0,0.5734156]
[1760205900066,0.5594061,112000.0,111990.0,0.6536663]
[1760205906568,0.1986061,112000.0,111990.0,0.6536663]
[1760205906769,0.5594061,112000.0,111990.0,0.6536663]
[1760205906964,0.07321,112000.0,111990.0,1.47901108]
[1760205907766,0.07321,112000.0,111990.0,1.87901108]
[1760205909870,0.07321,112000.0,111990.0,1.79876038]
[1760205917486,0.07321,112000.0,111990.0,1.87899705]
[1760205923583,0.07321,112000.0,111990.0,1.79876038]
[1760205923975,0.07321,112000.0,111990.0,1.91104568]
[1760205929587,0.08599,112000.0,111990.0,1.0465009]
[1760205929785,0.08599,112000.0,111990.0,0.5734156]
[1760205930088,0.47004,112000.0,111990.0,0.5734156]
[1760205930386,0.47004,112000.0,111990.0,0.65362865]
[1760205932386,0.5592361,112000.0,111990.0,0.20207387]
[1760205932683,1.41079088,112000.0,111990.0,0.11286977]
[1760205933088,1.41079088,112000.0,111990.0,0.56442455]
[1760205933485,1.41079088,112000.0,111990.0,0.11286977]
[1760205933790,1.41079088,112000.0,111990.0,0.09006977]
[1760205934589,1.41079088,112000.0,111990.0,0.11246977]
[1760205937691,1.41079088,112000.0,111990.0,0.08121305]
[1760205937892,1.41079088,112000.0,111990.0,0.001]
[1760205941496,1.3608634,112000.0,111990.0,0.001]
[1760205942392,0.9608634,112000.0,111990.0,0.001]
[1760205942688,0.9608634,112000.0,111970.0,0.08021305]
[1760205942888,0.102618,111960.0,111940.0,0.02122]
[1760205943084,0.486646,111950.0,111940.0,0.02122]
[1760205944396,0.485646,111950.0,111940.0,0.03111059]
[1760205944797,0.485646,111950.0,111940.0,0.03011059]
[1760205944991,0.485646,111950.0,111940.0,0.11935449]
[1760205945189,0.485646,111950.0,111940.0,0.03011059]
[1760205946301,0.55668522,111950.0,111940.0,0.11935449]
[1760205947501,0.62992522,111950.0,111940.0,0.11935449]
[1760205948202,1.43155252,111950.0,111940.0,0.00889059]
[1760205948400,1.02992522,111950.0,111940.0,0.02122]
[1760205948600,1.02992522,111950.0,111940.0,0.03008468]
[1760205951303,1.02992522,111950.0,111940.0,0.11932868]
[1760205951497,1.02992522,111950.0,111930.0,0.00010981]
[1760205951699,0.486654,111940.0,111930.0,0.02132981]
[1760205952401,1.2882813,111940.0,111930.0,0.00010981]
[1760205954995,0.0892519,111930.0,111920.0,0.00887363]
[1760205955301,0.1258699,111920.0,111910.0,0.1104877]
[1760205955603,0.4866699,111920.0,111910.0,0.1104877]
[1760205956103,0.48674511,111920.0,111910.0,0.1104877]
[1760205957404,0.48674511,111920.0,111910.0,0.1194169]
[1760205959405,0.48674511,111920.0,111910.0,0.5210442]
[1760205960602,0.39748521,111920.0,111910.0,0.5210442]
[1760205961005,0.02329521,111920.0,111910.0,0.8947742]
[1760205964612,0.03668521,111920.0,111910.0,0.8947742]
[1760205965114,0.02329521,111920.0,111910.0,0.8947742]
[1760205966817,0.39748521,111920.0,111910.0,0.1194171]
[1760205967111,0.48674511,111920.0,111910.0,0.1194171]
[1760205970519,0.48674511,111920.0,111910.0,0.5210444]
[1760205974821,0.39748521,111920.0,111910.0,0.5210444]
[1760205975820,0.03668521,111920.0,111910.0,0.5210444]
[1760205976318,0.02329521,111920.0,111910.0,0.5339744]
[1760205976519,0.02263521,111920.0,111910.0,0.8947744]
[1760205976927,0.03533521,111920.0,111910.0,0.8818444]
[1760205978229,0.03533521,111920.0,111910.0,0.5210444]
[1760205978727,7.521e-05,111920.0,111910.0,0.8947744]
[1760205979125,0.02263521,111920.0,111910.0,0.8947744]
[1760205981732,0.02263521,111920.0,111910.0,0.5339744]
[1760205982028,0.02263521,111920.0,111910.0,0.8947744]
[1760205982526,0.02263521,111920.0,111910.0,0.5339744]
[1760205982738,0.02263521,111920.0,111910.0,0.8947744]
[1760205985138,0.12459511,111920.0,111910.0,0.1194171]
[1760205985436,0.39613521,111920.0,111910.0,0.1194171]
[1760205987540,0.03533521,111920.0,111910.0,0.5210444]
[1760205988038,0.03533521,111920.0,111910.0,0.1194171]
[1760205988238,0.03533521,111920.0,111910.0,0.5210444]
[1760205989142,0.39613521,111920.0,111910.0,0.5210444]
[1760205991140,0.39613521,111920.0,111910.0,0.1194171]
[1760205991941,0.39613521,111920.0,111910.0,0.5210444]
[1760205995241,0.1245358,111900.0,111890.0,0.10167028]
[1760205995441,0.4853358,111900.0,111890.0,0.1112338]
[1760205995647,0.4853358,111900.0,111890.0,0.19156085]
[1760205996241,0.03526,111900.0,111890.0,0.5138611]
[1760205996446,0.03526,111900.0,111890.0,0.53595507]
[1760205996646,0.03526,111900.0,111890.0,0.52302507]
[1760205996843,0.03526,111900.0,111890.0,0.52402507]
[1760205997546,0.10707367,111900.0,111890.0,0.52402507]
[1760205997746,0.07181367,111900.0,111890.0,1.29775507]
[1760205997943,0.1019686,111910.0,111900.0,0.1112259]
[1760205998146,0.1245286,111910.0,111900.0,0.5128532]
[1760205998642,0.37357521,111920.0,111900.0,0.5128532]
[1760205998643,0.02263521,111920.0,111910.0,0.1241479]
[1760205998848,0.02263521,111920.0,111910.0,0.60610225]
[1760206000146,0.02263521,111920.0,111910.0,0.96690225]
[1760206000848,7.521e-05,111920.0,111910.0,1.2865752]
[1760206001049,0.07271144,111920.0,111910.0,1.36678052]
[1760206001250,7.521e-05,111920.0,111910.0,1.2865752]
[1760206001447,7.521e-05,111920.0,111910.0,1.3988605]
[1760206001653,0.07326,111930.0,111920.0,0.1187199]
[1760206001951,0.07326,111930.0,111920.0,1.3950598]
[1760206002151,0.07326,111930.0,111920.0,0.9934325]
[1760206003052,0.07326,111930.0,111920.0,0.5918052]
[1760206003247,0.09511,111930.0,111920.0,0.9934325]
[1760206003443,0.07326,111930.0,111920.0,1.04388666]
[1760206005653,0.07326,111930.0,111920.0,1.40468666]
[1760206007756,0.07326,111930.0,111920.0,1.29240136]
[1760206008158,0.07326,111930.0,111920.0,1.74448282]
[1760206009259,0.07326,111930.0,111920.0,1.8245423]
[1760206017065,0.07326,111930.0,111920.0,1.37246084]
[1760206017367,0.07326,111930.0,111920.0,1.8245423]
[1760206018069,0.07326,111930.0,111920.0,1.74448282]
[1760206018762,0.07326,111930.0,111920.0,1.82450095]
[1760206028466,0.07326,111930.0,111920.0,1.74448282]
[1760206031576,0.07326,111930.0,111920.0,1.85676812]
[1760206032478,0.07326,111930.0,111920.0,1.74448282]
[1760206034880,0.07326,111930.0,111920.0,1.85676812]
[1760206039279,0.07326,111930.0,111920.0,1.74448282]
[1760206039883,0.07326,111930.0,111920.0,1.85676812]
[1760206040383,0.07326,111930.0,111920.0,2.25676812]
[1760206040884,0.07326,111930.0,111920.0,2.14448282]
[1760206044089,0.07326,111930.0,111920.0,2.25686039]
[1760206045787,0.07326,111930.0,111920.0,2.14448282]
[1760206046799,0.07326,111930.0,111920.0,2.2568353]
[1760206049397,0.39631,111960.0,111950.0,0.111746]
[1760206049593,0.39631,111960.0,111950.0,0.56382746]
[1760206050700,0.39831,111960.0,111950.0,0.56382746]
[1760206051697,0.39831,111960.0,111950.0,0.64406946]
[1760206052100,0.39831,111960.0,111950.0,0.65322793]
[1760206052898,0.47155,111960.0,111950.0,0.57298593]
[1760206053398,0.47155,111960.0,111950.0,0.56382746]
[1760206053600,0.47155,111960.0,111950.0,0.6440638]
[1760206053795,0.92363146,111960.0,111950.0,0.6440638]
[1760206053996,0.92363146,111960.0,111950.0,0.56382746]
[1760206054191,0.47155,111960.0,111950.0,0.111746]
[1760206054595,0.92363146,111960.0,111950.0,0.111746]
[1760206055398,0.92363146,111960.0,111950.0,0.56382746]
[1760206055700,0.92363146,111960.0,111950.0,0.57262369]
[1760206055901,0.99337958,111960.0,111950.0,0.57262369]
[1760206057000,0.99337958,111960.0,111950.0,0.56382746]
[1760206057399,0.54129812,111960.0,111950.0,0.56382746]
[1760206057598,0.99337958,111960.0,111950.0,0.56382746]
[1760206058097,0.99337958,111960.0,111950.0,0.6440638]
[1760206060800,0.99337958,111960.0,111950.0,0.65302188]
[1760206063106,0.99337958,111960.0,111950.0,0.57278554]
[1760206063505,0.99337958,111960.0,111950.0,0.65302188]
[1760206063901,0.54129812,111960.0,111950.0,0.65302188]
[1760206064101,0.99337958,111960.0,111950.0,0.65302188]
[1760206064806,0.54129812,111960.0,111950.0,0.65302188]
[1760206065007,0.52859812,111960.0,111950.0,0.66606188]
[1760206065403,0.52859812,111960.0,111950.0,0.21398042]
[1760206065605,0.52859812,111960.0,111950.0,0.61572662]
[1760206066106,0.54245812,111960.0,111950.0,0.20094042]
[1760206076519,0.54245812,111960.0,111950.0,0.21398042]
[1760206076715,0.54245812,111960.0,111950.0,0.20094042]
[1760206082624,0.52859812,111960.0,111950.0,0.61572662]
[1760206082826,0.52859812,111960.0,111950.0,0.53549028]
[1760206083021,0.54245812,111960.0,111950.0,0.12070408]
[1760206083222,0.54245812,111960.0,111950.0,0.52245028]
[1760206083420,0.54245812,111960.0,111950.0,0.53549028]
[1760206083620,0.54245812,111960.0,111950.0,0.12070408]
[1760206083816,0.54245812,111960.0,111950.0,0.52245028]
[1760206084325,0.54245812,111960.0,111950.0,0.60274664]
[1760206084525,0.54145812,111960.0,111950.0,0.60274664]
[1760206084824,0.54145812,111960.0,111950.0,0.20100044]
[1760206085025,0.54045812,111960.0,111950.0,0.20100044]
[1760206085226,0.54045812,111960.0,111950.0,0.12070408]
[1760206085422,0.54045812,111960.0,111950.0,0.20099478]
[1760206085927,0.54045812,111960.0,111950.0,0.12070408]
[1760206086226,0.54045812,111960.0,111950.0,0.20099129]
[1760206087323,0.52659812,111960.0,111950.0,0.21403129]
[1760206087631,0.54045812,111960.0,111950.0,0.12070408]
[1760206087927,0.54045812,111960.0,111950.0,0.20098711]
[1760206089729,0.54045812,111960.0,111950.0,0.60273331]
[1760206090129,0.54045812,111960.0,111950.0,0.20098711]
[1760206093734,0.54045812,111960.0,111950.0,0.12070408]
[1760206096435,0.54045812,111960.0,111950.0,0.20098711]
[1760206101440,0.03419,111940.0,111930.0,0.089252]
[1760206101634,0.39499,111940.0,111930.0,0.112112]
[1760206101834,0.484234,111940.0,111930.0,0.112112]
[1760206102042,0.1234473,111930.0,111920.0,0.1121169]
[1760206102233,0.39499,111930.0,111920.0,0.12109193]
[1760206103439,0.39499,111930.0,111920.0,0.12209193]
[1760206104141,1.2859882,111930.0,111920.0,0.002]
[1760206104838,0.03419,111900.0,111890.0,0.1121396]
[1760206105229,0.03419,111900.0,111890.0,0.52299138]
[1760206105428,0.03419,111900.0,111890.0,0.12124518]
[1760206106436,0.03419,111900.0,111890.0,0.12224518]